bitfinex-derivatives/quotes_BTCF0:USTF0_20210703
["timestamp","ask_amount","ask_price","bid_price","bid_amount"]
[1625300716132,0.48115088,34436.0,34435.0,0.90582152]
[1625300716479,0.48115088,34436.0,34435.0,0.56711161]
[1625300716779,0.48115088,34436.0,34435.0,0.50811161]
[1625300716881,0.48115088,34436.0,34435.0,0.84689328]
[1625300717380,0.48115088,34436.0,34435.0,0.33878167]
[1625300717931,0.48115088,34436.0,34435.0,0.50843153]
[1625300718630,0.48115088,34436.0,34435.0,0.8474651]
[1625300719332,0.48115088,34436.0,34435.0,1.18687497]
[1625300719682,0.48115088,34436.0,34435.0,0.3393395]
[1625300720489,0.48115088,34436.0,34435.0,1.18754881]
[1625300721590,0.48115088,34436.0,34435.0,2.20707244]
[1625300722191,0.48115088,34436.0,34435.0,3.39795667]
[1625300722691,0.48115088,34436.0,34435.0,3.45695667]
[1625300723542,0.48115088,34436.0,34435.0,3.39795667]
[1625300723642,0.75705088,34436.0,34435.0,3.39795667]
[1625300723744,0.75705088,34436.0,34435.0,3.45695667]
[1625300724693,0.48115088,34436.0,34435.0,3.51595667]
[1625300724802,0.24057544,34449.0,34435.0,4.01595667]
[1625300725046,0.24057544,34449.0,34435.0,5.37696964]
[1625300725145,0.24057544,34449.0,34435.0,4.87696964]
[1625300725245,0.24057544,34449.0,34443.0,0.24057544]
[1625300725348,0.24057544,34448.0,34443.0,0.24057544]
[1625300725447,0.24057544,34448.0,34443.0,0.35857544]
[1625300725798,0.29757544,34448.0,34444.0,0.85025853]
[1625300726048,0.35657544,34448.0,34444.0,0.85025853]
[1625300726398,0.35657544,34448.0,34442.0,0.85087065]
[1625300726500,0.35657544,34448.0,34442.0,0.90987065]
[1625300726899,0.35657544,34448.0,34442.0,0.39934826]
[1625300727401,0.70836088,34443.0,34442.0,0.39934826]
[1625300731005,0.70836088,34443.0,34442.0,0.57003331]
[1625300731256,0.76536088,34443.0,34442.0,0.57003331]
[1625300731810,0.70836088,34443.0,34442.0,0.059]
[1625300732161,0.70836088,34443.0,34442.0,0.91073728]
[1625300732310,0.48115088,34443.0,34442.0,0.91073728]
[1625300732510,0.48115088,34443.0,34442.0,0.96973728]
[1625300732609,0.48115088,34443.0,34442.0,0.45869491]
[1625300734462,0.48115088,34443.0,34442.0,0.97002411]
[1625300734862,0.48115088,34443.0,34442.0,0.91102411]
[1625300735665,0.48115088,34443.0,34442.0,0.5703292]
[1625300737969,0.48115088,34443.0,34442.0,1.2527332]
[1625300738920,0.73937088,34443.0,34442.0,1.2527332]
[1625300742279,0.73937088,34443.0,34442.0,0.91167566]
[1625300742829,0.73937088,34443.0,34442.0,0.40034646]
[1625300743530,0.79637088,34443.0,34442.0,0.40034646]
[1625300743733,0.79637088,34443.0,34442.0,0.34134646]
[1625300743832,0.85537088,34443.0,34442.0,0.34134646]
[1625300744235,0.85537088,34443.0,34439.0,0.85441413]
[1625300744686,0.85537088,34443.0,34440.0,0.0883]
[1625300745140,0.85537088,34443.0,34437.0,0.34187962]
[1625300745488,0.85537088,34443.0,34436.0,1.19657867]
[1625300745489,0.29757544,34438.0,34436.0,0.85474577]
[1625300745589,0.35657544,34438.0,34436.0,0.85474577]
[1625300746039,0.35657544,34438.0,34436.0,0.34192634]
[1625300747339,0.41557544,34438.0,34436.0,0.34192634]
[1625300747491,0.29757544,34437.0,34436.0,0.34192634]
[1625300747590,0.35657544,34437.0,34436.0,0.34192634]
[1625300747691,0.41557544,34437.0,34435.0,0.85540747]
[1625300748291,0.41557544,34437.0,34431.0,0.34224113]
[1625300748691,0.41557544,34437.0,34431.0,0.85559994]
[1625300749191,0.41557544,34437.0,34431.0,0.34224113]
[1625300749393,0.48115088,34432.0,34431.0,0.34224113]
[1625300749494,0.73314088,34432.0,34431.0,0.34224113]
[1625300749692,0.73314088,34432.0,34431.0,0.51337905]
[1625300749792,5.59734088,34432.0,34431.0,0.51337905]
[1625300750043,5.59734088,34432.0,34431.0,0.8556319]
[1625300750244,5.65634088,34432.0,34431.0,0.8556319]
[1625300750545,0.79214088,34432.0,34431.0,0.8556319]
[1625300750892,0.73314088,34432.0,34431.0,0.8556319]
[1625300751193,0.79214088,34432.0,34431.0,0.8556319]
[1625300751543,0.73514088,34432.0,34431.0,0.8556319]
[1625300751644,0.67614088,34432.0,34431.0,0.51337905]
[1625300752097,0.67614088,34432.0,34431.0,1.19797749]
[1625300752745,0.48115088,34432.0,34431.0,1.19797749]
[1625300755553,0.53815088,34432.0,34431.0,1.19797749]
[1625300755904,0.53815088,34432.0,34431.0,0.51337905]
[1625300756405,0.53815088,34432.0,34431.0,1.19837985]
[1625300757355,0.53815088,34432.0,34431.0,0.51337905]
[1625300757705,0.53815088,34432.0,34431.0,1.19871916]
[1625300759758,0.53815088,34432.0,34431.0,2.22746422]
[1625300760759,0.53815088,34432.0,34431.0,1.19871916]
[1625300761915,0.53815088,34432.0,34431.0,2.2274625]
[1625300763014,0.53815088,34432.0,34431.0,1.19871916]
[1625300764668,0.53815088,34432.0,34431.0,2.22712965]
[1625300765967,0.48115088,34432.0,34431.0,2.22712965]
[1625300766167,0.48115088,34432.0,34431.0,2.28612965]
[1625300766519,0.48115088,34432.0,34431.0,7.43122965]
[1625300766619,0.48115088,34432.0,34431.0,9.99976938]
[1625300766868,0.48115088,34432.0,34431.0,10.05876938]
[1625300767322,0.48115088,34432.0,34431.0,4.91366938]
[1625300767422,0.48115088,34432.0,34431.0,6.45355467]
[1625300767520,0.48115088,34432.0,34431.0,6.69413011]
[1625300769026,0.48115088,34432.0,34431.0,6.78093011]
[1625300769477,0.48115088,34432.0,34431.0,6.69413011]
[1625300771228,0.48115088,34432.0,34431.0,5.15424482]
[1625300771782,0.53815088,34432.0,34431.0,5.15424482]
[1625300771980,0.48115088,34432.0,34431.0,5.15424482]
[1625300772881,0.69460088,34432.0,34431.0,5.15424482]
[1625300773032,0.75160088,34432.0,34431.0,5.09524482]
[1625300773133,0.75160088,34432.0,34431.0,5.03624482]
[1625300773232,0.81060088,34432.0,34431.0,5.03624482]
[1625300773583,0.75360088,34432.0,34431.0,5.03624482]
[1625300773685,0.81060088,34432.0,34431.0,2.80918246]
[1625300773784,0.81060088,34432.0,34431.0,1.4392946]
[1625300773883,0.75160088,34432.0,34431.0,1.4392946]
[1625300774184,0.75160088,34432.0,34431.0,2.46742051]
[1625300774484,0.69460088,34432.0,34431.0,2.46742051]
[1625300774686,0.48115088,34432.0,34431.0,2.46742051]
[1625300774837,0.48115088,34432.0,34431.0,2.52642051]
[1625300775093,0.48115088,34432.0,34431.0,5.09643141]
[1625300775636,0.48115088,34432.0,34431.0,5.15543141]
[1625300777099,0.48115088,34432.0,34431.0,5.09643141]
[1625300777548,0.48115088,34432.0,34431.0,5.15543141]
[1625300792227,0.48115088,34432.0,34431.0,5.09643141]
[1625300792328,0.48115088,34432.0,34431.0,5.15543141]
[1625300792627,0.48115088,34432.0,34431.0,5.24343141]
[1625300793429,0.53815088,34432.0,34431.0,5.24343141]
[1625300796283,0.53815088,34432.0,34431.0,5.00285597]
[1625300796786,0.48115088,34432.0,34431.0,5.00285597]
[1625300797685,0.48115088,34432.0,34431.0,4.91485597]
[1625300798139,0.53815088,34432.0,34431.0,4.91485597]
[1625300798240,0.53815088,34432.0,34431.0,4.85585597]
[1625300798637,0.53815088,34432.0,34431.0,4.94405597]
[1625300798737,0.53815088,34432.0,34431.0,5.00305597]
[1625300798840,0.48115088,34432.0,34431.0,5.00305597]
[1625300799991,0.53815088,34432.0,34431.0,5.00305597]
[1625300801394,0.53815088,34432.0,34431.0,4.85585597]
[1625300802345,0.53815088,34432.0,34431.0,4.91485597]
[1625300802495,0.53815088,34432.0,34431.0,4.85585597]
[1625300803096,0.53815088,34432.0,34431.0,4.79685597]
[1625300803247,0.48115088,34432.0,34431.0,4.79685597]
[1625300803349,0.53815088,34432.0,34431.0,4.85585597]
[1625300803559,0.53815088,34432.0,34431.0,2.28584507]
[1625300804099,0.53815088,34432.0,34431.0,3.48766205]
[1625300805400,0.48115088,34432.0,34431.0,3.48766205]
[1625300806052,0.53815088,34432.0,34431.0,3.48766205]
[1625300806300,0.53815088,34432.0,34431.0,3.42866205]
[1625300807301,0.59715088,34432.0,34431.0,3.42866205]
[1625300807403,0.53815088,34432.0,34431.0,3.42866205]
[1625300807653,0.53815088,34432.0,34431.0,2.22684507]
[1625300808102,0.59715088,34432.0,34431.0,2.22684507]
[1625300808204,0.53815088,34432.0,34431.0,2.22684507]
[1625300809257,0.48115088,34432.0,34431.0,2.22684507]
[1625300809760,0.48115088,34432.0,34431.0,3.42856783]
[1625300810108,0.48115088,34432.0,34431.0,4.80195634]
[1625300810461,0.53815088,34432.0,34431.0,4.80195634]
[1625300810562,0.53815088,34432.0,34431.0,3.42856783]
[1625300811966,0.48115088,34432.0,34431.0,3.42856783]
[1625300812114,0.53815088,34432.0,34431.0,3.42856783]
[1625300812315,0.53815088,34432.0,34431.0,4.80198319]
[1625300813067,0.59715088,34432.0,34431.0,4.80198319]
[1625300813167,0.88192088,34432.0,34431.0,4.80198319]
[1625300813418,0.76592088,34432.0,34431.0,3.42856783]
[1625300814219,0.76592088,34432.0,34431.0,3.48756783]
[1625300814318,0.48115088,34432.0,34431.0,3.48756783]
[1625300814719,0.53815088,34432.0,34431.0,3.48756783]
[1625300815218,0.59715088,34432.0,34431.0,3.42856783]
[1625300815319,0.53815088,34432.0,34431.0,3.42856783]
[1625300815770,0.79583088,34432.0,34431.0,3.42856783]
[1625300816169,0.79583088,34432.0,34431.0,3.48756783]
[1625300816423,0.79583088,34432.0,34431.0,3.42856783]
[1625300816571,0.79583088,34432.0,34431.0,7.56036783]
[1625300816671,0.79583088,34432.0,34431.0,3.42856783]
[1625300817322,0.85483088,34432.0,34431.0,3.42856783]
[1625300817424,0.79583088,34432.0,34431.0,3.42856783]
[1625300817573,0.85483088,34432.0,34431.0,3.42856783]
[1625300817673,0.79583088,34432.0,34431.0,3.42856783]
[1625300818024,0.85483088,34432.0,34431.0,3.42856783]
[1625300819376,0.85483088,34432.0,34431.0,2.22684507]
[1625300823838,0.79583088,34432.0,34431.0,2.22684507]
[1625300824040,0.85483088,34432.0,34431.0,2.22684507]
[1625300824239,0.79583088,34432.0,34431.0,2.22684507]
[1625300824341,0.85483088,34432.0,34431.0,2.22684507]
[1625300824440,0.79583088,34432.0,34431.0,2.22684507]
[1625300824590,0.85483088,34432.0,34431.0,2.22684507]
[1625300824741,0.79583088,34432.0,34431.0,2.22684507]
[1625300824841,0.85483088,34432.0,34431.0,2.22684507]
[1625300825192,0.79583088,34432.0,34431.0,2.22684507]
[1625300825293,0.85483088,34432.0,34431.0,2.22684507]
[1625300830249,0.91383088,34432.0,34431.0,2.22684507]
[1625300830501,2.43148201,34432.0,34431.0,0.85680772]
[1625300830851,2.43148201,34432.0,34427.0,1.20200036]
[1625300830852,2.43148201,34432.0,34428.0,0.34334086]
[1625300831353,1.51855375,34430.0,34428.0,0.34334086]
[1625300831503,0.057,34429.0,34428.0,0.34334086]
[1625300831655,0.116,34429.0,34428.0,0.34334086]
[1625300831853,0.116,34429.0,34426.0,0.85841465]
[1625300831854,2.11605185,34429.0,34426.0,0.85841465]
[1625300832306,1.51946031,34428.0,34426.0,0.34336586]
[1625300832406,0.057,34427.0,34426.0,0.34336586]
[1625300832659,0.116,34427.0,34426.0,0.34336586]
[1625300833415,0.116,34427.0,34426.0,0.85822951]
[1625300834066,0.116,34427.0,34426.0,0.34336586]
[1625300834469,0.116,34427.0,34426.0,1.20091149]
[1625300835019,0.116,34427.0,34426.0,0.51467635]
[1625300835320,0.116,34427.0,34426.0,0.85779695]
[1625300835722,0.116,34427.0,34426.0,0.51467635]
[1625300836222,0.116,34427.0,34426.0,1.20079139]
[1625300839375,0.116,34427.0,34426.0,0.3430275]
[1625300839875,0.116,34427.0,34426.0,1.20057434]
[1625300840279,0.116,34427.0,34426.0,2.22957516]
[1625300840929,0.059,34427.0,34426.0,2.22957516]
[1625300841030,0.48115088,34429.0,34426.0,2.42263516]
[1625300841130,0.48115088,34429.0,34426.0,2.48163516]
[1625300841233,0.24057544,34429.0,34426.0,2.48163516]
[1625300841332,0.24057544,34429.0,34426.0,2.54063516]
[1625300841732,0.24057544,34429.0,34428.0,3.8063]
[1625300841883,0.24057544,34429.0,34428.0,8.90734648]
[1625300843035,0.24057544,34429.0,34428.0,5.10104648]
[1625300847494,0.24057544,34429.0,34428.0,5.16004648]
[1625300848045,0.24057544,34429.0,34428.0,10.7949547]
[1625300848595,0.24057544,34429.0,34428.0,6.7036547]
[1625300850501,0.24057544,34432.0,34428.0,6.7036547]
[1625300850600,0.29757544,34439.0,34428.0,6.7036547]
[1625300850601,0.24057544,34439.0,34429.0,0.5]
[1625300850749,1.52803444,34441.0,34429.0,0.559]
[1625300850849,1.52803444,34441.0,34432.0,0.059]
[1625300850951,1.52803444,34441.0,34433.0,0.5]
[1625300851100,1.52803444,34441.0,34433.0,0.89133]
[1625300851300,1.52803444,34441.0,34440.0,3.8154]
[1625300851400,0.9115,34443.0,34440.0,5.29279932]
[1625300851951,0.9115,34443.0,34442.0,0.72172632]
[1625300852151,0.9115,34443.0,34442.0,0.78072632]
[1625300852252,0.9115,34443.0,34442.0,1.12366862]
[1625300852701,0.9115,34443.0,34442.0,0.78072632]
[1625300854607,2.44444605,34443.0,34442.0,0.78072632]
[1625300854907,7.51194605,34443.0,34442.0,0.78072632]
[1625300855056,2.44444605,34443.0,34442.0,0.78072632]
[1625300855609,2.44444605,34443.0,34442.0,0.29957544]
[1625300855712,2.50144605,34443.0,34442.0,0.24057544]
[1625300855812,2.56044605,34443.0,34442.0,0.24057544]
[1625300855966,3.04159693,34443.0,34442.0,0.24057544]
[1625300856564,3.10059693,34443.0,34442.0,0.24057544]
[1625300856813,3.10059693,34443.0,34437.0,0.34289295]
[1625300856967,3.10059693,34443.0,34435.0,0.85724485]
[1625300856968,3.31634693,34443.0,34435.0,0.85724485]
[1625300857419,1.53171899,34438.0,34435.0,0.34289794]
[1625300857517,0.057,34437.0,34435.0,0.34289794]
[1625300857616,0.116,34437.0,34435.0,0.34289794]
[1625300857868,1.64730857,34437.0,34434.0,0.34293442]
[1625300857966,0.24057544,34435.0,34434.0,0.34293442]
[1625300858067,0.29757544,34435.0,34434.0,0.34293442]
[1625300858167,0.56010544,34435.0,34433.0,0.85733825]
[1625300859169,0.56010544,34435.0,34434.0,0.34293154]
[1625300859770,0.50310544,34435.0,34434.0,0.51439592]
[1625300860072,0.56010544,34435.0,34434.0,0.51439592]
[1625300860578,0.56010544,34435.0,34434.0,0.85733796]
[1625300861873,0.56010544,34435.0,34434.0,0.34294204]
[1625300863279,0.61910544,34435.0,34434.0,0.34294204]
[1625300863377,0.56010544,34435.0,34434.0,0.34294204]
[1625300863778,0.61910544,34435.0,34434.0,0.34294204]
[1625300863879,0.56010544,34435.0,34434.0,0.34294204]
[1625300864229,0.56010544,34435.0,34433.0,0.34293086]
[1625300864329,0.61910544,34435.0,34433.0,0.34293086]
[1625300864429,0.56010544,34435.0,34433.0,0.34293086]
[1625300864529,0.61910544,34435.0,34433.0,0.34293086]
[1625300864630,0.56010544,34435.0,34433.0,0.34293086]
[1625300864932,0.56010544,34435.0,34433.0,0.51440797]
[1625300865436,0.56010544,34435.0,34434.0,0.51442083]
[1625300865934,0.56010544,34435.0,34434.0,0.17147361]
[1625300866034,0.24057544,34435.0,34434.0,0.17147361]
[1625300866436,0.24057544,34435.0,34434.0,1.20025099]
[1625300867137,0.24057544,34435.0,34434.0,2.22900954]
[1625300868038,0.24057544,34435.0,34434.0,2.46958498]
[1625300868339,0.29757544,34435.0,34434.0,2.46958498]
[1625300869189,0.24057544,34435.0,34434.0,2.46958498]
[1625300869290,0.29757544,34435.0,34434.0,2.46958498]
[1625300870041,0.24057544,34435.0,34434.0,2.46958498]
[1625300870792,0.24057544,34435.0,34434.0,2.52858498]
[1625300871092,0.24057544,34435.0,34434.0,2.58758498]
[1625300871294,0.24057544,34435.0,34434.0,2.52858498]
[1625300871398,0.24057544,34435.0,34434.0,5.15905008]
[1625300872095,0.24057544,34436.0,34434.0,5.15905008]
[1625300872798,0.24057544,34436.0,34435.0,4.79903693]
[1625300872947,0.24057544,34436.0,34435.0,4.91703693]
[1625300875752,0.24057544,34436.0,34435.0,3.48688352]
[1625300876953,0.24057544,34436.0,34435.0,3.54588352]
[1625300881973,0.24057544,34436.0,34435.0,4.85746373]
[1625300882222,0.24057544,34436.0,34435.0,4.91646373]
[1625300882477,0.24057544,34436.0,34435.0,3.54588352]
[1625300882574,0.9115,34443.0,34435.0,3.54588352]
[1625300882977,0.9115,34443.0,34442.0,2.22708486]
[1625300883127,0.9115,34443.0,34442.0,2.63905486]
[1625300884231,0.9115,34443.0,34442.0,3.36078118]
[1625300885133,0.9115,34443.0,34442.0,3.30178118]
[1625300885935,0.9115,34443.0,34442.0,2.27389586]
[1625300886037,0.9115,34443.0,34442.0,1.97992586]
[1625300886938,0.9685,34443.0,34442.0,1.97992586]
[1625300887338,0.9685,34443.0,34442.0,0.95188552]
[1625300887639,0.9685,34443.0,34442.0,0.78072632]
[1625300888542,0.9685,34443.0,34442.0,1.29416397]
[1625300888992,0.9115,34443.0,34442.0,1.29416397]
[1625300890496,0.9685,34443.0,34442.0,1.29416397]
[1625300891199,0.9685,34443.0,34442.0,0.9518722]
[1625300891600,0.9685,34443.0,34442.0,0.78072632]
[1625300891800,0.9115,34443.0,34442.0,0.78072632]
[1625300892002,0.9115,34443.0,34442.0,0.95188043]
[1625300892453,0.9685,34443.0,34442.0,1.97865043]
[1625300892602,1.25301,34443.0,34442.0,1.97865043]
[1625300892855,1.25301,34443.0,34442.0,1.12308132]
[1625300893356,1.25301,34443.0,34442.0,1.29425921]
[1625300894964,1.25301,34443.0,34442.0,1.23525921]
[1625300895061,1.31201,34443.0,34442.0,1.23525921]
[1625300895361,1.31201,34443.0,34442.0,0.51353289]
[1625300895463,1.31201,34443.0,34440.0,0.25686258]
[1625300895464,1.25301,34443.0,34440.0,0.25686258]
[1625300895562,1.31201,34443.0,34440.0,0.25686258]
[1625300896062,1.31201,34443.0,34441.0,0.08564718]
[1625300896313,0.29757544,34442.0,34441.0,0.08564718]
[1625300896412,0.35657544,34442.0,34441.0,0.08564718]
[1625300896613,0.29757544,34442.0,34441.0,0.08564718]
[1625300896815,0.29757544,34442.0,34440.0,0.59948416]
[1625300897015,0.35657544,34442.0,34440.0,0.59948416]
[1625300897317,0.29757544,34442.0,34440.0,0.59948416]
[1625300897417,0.35657544,34442.0,34440.0,0.25689544]
[1625300898018,0.35657544,34442.0,34440.0,0.08565372]
[1625300898372,1.8825327,34442.0,34439.0,0.08569204]
[1625300898673,1.8825327,34442.0,34438.0,0.84042131]
[1625300900327,0.24057544,34439.0,34438.0,0.24057544]
[1625300900427,0.35657544,34439.0,34438.0,0.24057544]
[1625300900977,0.29757544,34439.0,34438.0,0.24057544]
[1625300901127,0.35657544,34439.0,34438.0,0.24057544]
[1625300901527,0.35657544,34439.0,34438.0,0.32630422]
[1625300901977,0.35657544,34439.0,34438.0,0.24057544]
[1625300902679,0.35657544,34439.0,34438.0,0.32630796]
[1625300903429,0.29757544,34439.0,34438.0,0.32630796]
[1625300903729,0.29757544,34439.0,34438.0,0.49777688]
[1625300904184,0.29757544,34439.0,34438.0,1.44082477]
[1625300905786,0.29757544,34439.0,34438.0,1.68228477]
[1625300908894,0.29757544,34439.0,34438.0,0.99653225]
[1625300909495,0.29757544,34439.0,34438.0,0.75595681]
[1625300909594,0.29757544,34439.0,34438.0,0.51449681]
[1625300909696,0.35657544,34439.0,34438.0,0.51449681]
[1625300910044,0.35657544,34439.0,34438.0,0.60024736]
[1625300910297,0.35657544,34439.0,34438.0,0.08575055]
[1625300910644,0.29757544,34439.0,34438.0,0.08575055]
[1625300910995,0.35657544,34439.0,34438.0,0.08575055]
[1625300911097,0.41557544,34439.0,34438.0,0.08575055]
[1625300911296,1.94398882,34439.0,34437.0,0.60024783]
[1625300911897,1.94398882,34439.0,34437.0,0.25725064]
[1625300912398,0.057,34437.0,34436.0,0.25724828]
[1625300912498,0.29757544,34437.0,34436.0,0.25724828]
[1625300912648,0.35657544,34437.0,34436.0,0.25724828]
[1625300912901,0.35657544,34437.0,34436.0,0.85748513]
[1625300913150,0.41557544,34437.0,34436.0,0.85748513]
[1625300913251,0.41557544,34437.0,34436.0,0.60024372]
[1625300913602,0.41557544,34437.0,34436.0,0.25724967]
[1625300916206,0.41557544,34437.0,34436.0,0.60021033]
[1625300917111,0.41557544,34437.0,34436.0,0.25724967]
[1625300917659,0.41557544,34437.0,34436.0,0.60021409]
[1625300925728,0.35657544,34437.0,34436.0,0.60021409]
[1625300925979,0.35657544,34437.0,34436.0,0.5144642]
[1625300926333,0.41557544,34437.0,34436.0,0.5144642]
[1625300926431,0.35657544,34437.0,34436.0,0.5144642]
[1625300926631,0.41557544,34437.0,34436.0,0.5144642]
[1625300926731,0.35657544,34437.0,34436.0,0.5144642]
[1625300927082,0.41557544,34437.0,34436.0,0.5144642]
[1625300927331,0.35657544,34437.0,34436.0,0.5144642]
[1625300927481,1.95521355,34437.0,34436.0,0.25726622]
[1625300927581,1.89621355,34437.0,34436.0,0.25726622]
[1625300927931,1.89621355,34437.0,34436.0,0.60031592]
[1625300928434,1.95521355,34437.0,34436.0,0.60031592]
[1625300928633,1.89621355,34437.0,34436.0,0.60031592]
[1625300928834,1.95521355,34437.0,34436.0,0.60031592]
[1625300928985,1.95521355,34437.0,34436.0,0.25726622]
[1625300929386,1.95521355,34437.0,34436.0,0.08576644]
[1625300932595,1.95521355,34437.0,34436.0,0.25727531]
[1625300933549,1.89621355,34437.0,34436.0,0.25727531]
[1625300933650,0.35657544,34437.0,34436.0,0.25727531]
[1625300933750,0.29757544,34437.0,34436.0,0.25727531]
[1625300934106,0.29757544,34437.0,34436.0,0.51451025]
[1625300934905,0.35657544,34437.0,34436.0,0.85750332]
[1625300935106,0.29757544,34437.0,34436.0,0.85750332]
[1625300935908,0.41557544,34437.0,34436.0,0.85750332]
[1625300936008,0.35657544,34437.0,34436.0,0.85750332]
[1625300936158,0.41557544,34437.0,34436.0,0.85750332]
[1625300936458,0.41557544,34437.0,34436.0,0.2572484]
[1625300936711,0.35857544,34437.0,34436.0,0.2572484]
[1625300936809,0.24057544,34437.0,34436.0,0.2572484]
[1625300936909,0.24057544,34437.0,34436.0,0.65924056]
[1625300937561,0.24057544,34437.0,34436.0,2.28839301]
[1625300937808,0.24057544,34437.0,34436.0,2.22939301]
[1625300938862,0.24057544,34437.0,34436.0,2.28839301]
[1625300939063,0.24057544,34437.0,34436.0,2.34739301]
[1625300939263,0.24057544,34437.0,34436.0,2.28839301]
[1625300939364,0.24057544,34437.0,34436.0,6.93069301]
[1625300939462,0.24057544,34437.0,34436.0,6.87169301]
[1625300939615,0.24057544,34439.0,34436.0,6.87169301]
[1625300939813,0.24057544,34439.0,34436.0,8.07206217]
[1625300939914,0.24057544,34439.0,34436.0,8.13106217]
[1625300940114,0.24057544,34439.0,34438.0,3.42950985]
[1625300940213,0.24057544,34439.0,34438.0,3.65006985]
[1625300940315,0.24057544,34439.0,34438.0,3.70906985]
[1625300940565,0.24057544,34439.0,34438.0,5.08082841]
[1625300940664,0.24057544,34439.0,34438.0,5.26240385]
[1625300940815,0.24057544,34439.0,34438.0,5.32140385]
[1625300941014,0.24057544,34439.0,34438.0,5.26240385]
[1625300941566,0.24057544,34439.0,34438.0,5.32140385]
[1625300941668,0.24057544,34439.0,34438.0,3.94964529]
[1625300941769,0.24057544,34439.0,34438.0,3.89064529]
[1625300942019,0.24057544,34439.0,34438.0,5.26238793]
[1625300942120,0.24057544,34439.0,34438.0,5.32138793]
[1625300942466,0.24057544,34439.0,34438.0,5.38038793]
[1625300942569,0.24057544,34439.0,34438.0,5.32138793]
[1625300942668,0.24057544,34439.0,34438.0,3.89064529]
[1625300943018,0.24057544,34439.0,34438.0,2.69031684]
[1625300945171,0.29757544,34439.0,34438.0,2.69031684]
[1625300945521,0.24057544,34439.0,34438.0,2.69031684]
[1625300947524,0.24057544,34439.0,34438.0,2.74931684]
[1625300947825,0.24057544,34439.0,34438.0,3.89143741]
[1625300948274,0.24057544,34439.0,34438.0,2.69031684]
[1625300949425,0.24057544,34439.0,34438.0,2.74931684]
[1625300949678,0.24057544,34439.0,34438.0,3.9505787]
[1625300950783,0.24057544,34439.0,34438.0,3.8915787]
[1625300950882,0.24057544,34439.0,34438.0,3.9505787]
[1625300951182,0.24057544,34439.0,34438.0,3.8915787]
[1625300952385,0.24057544,34439.0,34438.0,3.9505787]
[1625300952536,0.24057544,34439.0,34438.0,3.8915787]
[1625300952639,0.24057544,34439.0,34438.0,3.9505787]
[1625300952737,0.24057544,34439.0,34438.0,3.8915787]
[1625300952988,0.24057544,34439.0,34438.0,3.9505787]
[1625300953192,0.24057544,34439.0,34438.0,4.0095787]
[1625300953343,0.24057544,34439.0,34438.0,3.9505787]
[1625300954394,0.24057544,34439.0,34438.0,3.8915787]
[1625300954847,0.24057544,34439.0,34438.0,3.9505787]
[1625300954947,0.24057544,34439.0,34438.0,3.8915787]
[1625300955047,0.24057544,34439.0,34438.0,3.9505787]
[1625300955147,0.24057544,34439.0,34438.0,3.8915787]
[1625300956097,0.29757544,34439.0,34438.0,3.8915787]
[1625300956548,0.29757544,34439.0,34438.0,3.9505787]
[1625300956549,0.24057544,34439.0,34438.0,3.9505787]
[1625300956648,0.24057544,34439.0,34438.0,4.0095787]
[1625300956850,1.53964896,34441.0,34438.0,4.0095787]
[1625300957051,0.9115,34443.0,34438.0,5.38295216]
[1625300957602,0.9115,34443.0,34442.0,4.80647455]
[1625300957702,0.9115,34443.0,34442.0,4.86547455]
[1625300958003,0.9115,34443.0,34442.0,3.49219611]
[1625300958509,0.9685,34443.0,34442.0,3.49219611]
[1625300958706,0.9685,34443.0,34442.0,3.43319611]
[1625300958807,0.9685,34443.0,34442.0,3.67377155]
[1625300959158,1.0275,34443.0,34442.0,1.44219408]
[1625300959257,0.9685,34443.0,34442.0,1.44219408]
[1625300959356,1.0275,34443.0,34442.0,1.44219408]
[1625300959558,2.56390432,34443.0,34442.0,0.49804591]
[1625300960109,2.62290432,34443.0,34442.0,0.08582349]
[1625300960810,2.86347976,34443.0,34442.0,0.08582349]
[1625300960960,4.56873061,34443.0,34438.0,0.84138225]
[1625300961060,4.76634061,34443.0,34438.0,0.84138225]
[1625300961411,1.53428663,34439.0,34438.0,0.49806407]
[1625300961559,1.70928663,34439.0,34438.0,0.49806407]
[1625300961862,1.70928663,34439.0,34438.0,0.24057544]
[1625300962361,1.65028663,34439.0,34438.0,0.24057544]
[1625300962463,1.70928663,34439.0,34438.0,0.24057544]
[1625300962812,1.94986207,34439.0,34438.0,0.24057544]
[1625300966421,1.94986207,34439.0,34435.0,0.60079019]
[1625300966822,0.24057544,34436.0,34435.0,0.60079019]
[1625300966920,0.54817544,34436.0,34435.0,0.60079019]
[1625300967021,0.60717544,34436.0,34435.0,0.60079019]
[1625300967172,2.20015705,34436.0,34435.0,0.08582855]
[1625300968323,2.20015705,34436.0,34434.0,0.84133744]
[1625300968874,1.59088963,34435.0,34434.0,0.49804517]
[1625300969023,1.64988963,34435.0,34434.0,0.49804517]
[1625300970029,1.64988963,34435.0,34434.0,0.24057544]
[1625300976946,1.64988963,34435.0,34433.0,0.08581393]
[1625300978000,1.64988963,34435.0,34433.0,0.25736017]
[1625300980606,1.52971438,34434.0,34432.0,0.60044947]
[1625300980703,0.057,34433.0,34432.0,0.60044947]
[1625300981002,0.35657544,34433.0,34432.0,0.60044947]
[1625300981757,0.35657544,34433.0,34432.0,0.25728536]
[1625300982255,0.35657544,34433.0,34432.0,0.60030581]
[1625300986067,0.24057544,34433.0,34432.0,0.81764581]
[1625300986266,0.29757544,34433.0,34432.0,0.81764581]
[1625300986566,0.29757544,34433.0,34432.0,4.40334581]
[1625300986668,0.29757544,34433.0,34432.0,5.00333181]
[1625300986917,0.29757544,34433.0,34432.0,1.41763181]
[1625300987368,0.24057544,34433.0,34432.0,1.41763181]
[1625300987469,0.24057544,34433.0,34432.0,5.00353181]
[1625300987572,0.24057544,34433.0,34432.0,4.31765078]
[1625300987769,0.24057544,34433.0,34432.0,0.73175078]
[1625300987870,0.29757544,34433.0,34432.0,0.73175078]
[1625300988070,0.24057544,34433.0,34432.0,1.41763829]
[1625300989574,0.24057544,34433.0,34432.0,2.44639178]
[1625300990675,0.24057544,34433.0,34432.0,2.50539178]
[1625300991175,0.24057544,34433.0,34432.0,2.44639178]
[1625300991378,0.24057544,34433.0,34432.0,2.50539178]
[1625300991477,0.24057544,34433.0,34432.0,3.70554871]
[1625300991628,0.24057544,34433.0,34432.0,3.64654871]
[1625300992378,0.24057544,34433.0,34432.0,3.70554871]
[1625300992528,0.24057544,34433.0,34432.0,3.64654871]
[1625300993632,0.24057544,34433.0,34432.0,3.70554871]
[1625300993982,0.24057544,34433.0,34432.0,2.50539178]
[1625300994682,0.24057544,34433.0,34432.0,2.44639178]
[1625300995137,0.24057544,34433.0,34432.0,2.50539178]
[1625300995238,0.24057544,34433.0,34432.0,2.44639178]
[1625300995488,0.24057544,34433.0,34432.0,2.50539178]
[1625300995590,0.24057544,34433.0,34432.0,3.64664212]
[1625300995841,0.24057544,34433.0,34432.0,3.70564212]
[1625300995943,0.24057544,34433.0,34432.0,3.64664212]
[1625300996042,0.24057544,34433.0,34432.0,2.50539178]
[1625300996143,0.24057544,34433.0,34432.0,2.44639178]
[1625300996243,0.24057544,34433.0,34432.0,2.50539178]